bitfinex/quotes_BTCUSD_20230117
["timestamp","ask_amount","ask_price","bid_price","bid_amount"]
[1673927234936,3.91127723,21157.0,21156.0,0.00194812]
[1673927235455,3.39962547,21157.0,21156.0,0.00194812]
[1673927235712,1.89830697,21157.0,21156.0,0.00194812]
[1673927236754,0.88309309,21157.0,21156.0,0.00194812]
[1673927236981,0.56115909,21157.0,21156.0,0.00194812]
[1673927237494,0.88309309,21157.0,21156.0,0.00194812]
[1673927237740,0.46915909,21157.0,21156.0,0.00194812]
[1673927238022,0.52015909,21157.0,21156.0,0.00294812]
[1673927238496,0.9498702,21157.0,21156.0,0.00294812]
[1673927239487,1.4225262,21157.0,21156.0,0.00294812]
[1673927243087,1.3715262,21157.0,21156.0,0.00194812]
[1673927243345,1.4615262,21157.0,21156.0,0.00194812]
[1673927243596,1.3715262,21157.0,21156.0,0.00194812]
[1673927243853,1.4615262,21157.0,21156.0,0.00194812]
[1673927244625,1.60262709,21157.0,21156.0,0.00194812]
[1673927244874,1.67802709,21157.0,21156.0,0.00175331]
[1673927245131,1.97802709,21157.0,21156.0,0.00175331]
[1673927245387,1.88967885,21157.0,21156.0,0.00175331]
[1673927245646,2.07122709,21157.0,21156.0,0.00175331]
[1673927245891,1.98122709,21157.0,21156.0,0.00175331]
[1673927246134,2.07222709,21157.0,21156.0,0.00175331]
[1673927247701,2.58387885,21157.0,21156.0,0.00175331]
[1673927247944,3.06139702,21157.0,21156.0,0.00175331]
[1673927248197,2.77899312,21157.0,21156.0,0.00175331]
[1673927248948,2.68799312,21157.0,21156.0,0.00175331]
[1673927249209,2.77899312,21157.0,21156.0,0.00175331]
[1673927249723,0.00054597,21155.0,21151.0,0.00293308]
[1673927249986,0.0755,21153.0,21151.0,0.00293308]
[1673927250232,0.321934,21152.0,21151.0,0.00293308]
[1673927250757,0.794702,21152.0,21151.0,0.00293308]
[1673927252506,0.884702,21152.0,21151.0,0.00293308]
[1673927253525,1.10730436,21152.0,21151.0,0.00293308]
[1673927253781,1.18340436,21152.0,21151.0,0.00293308]
[1673927254569,1.324498,21152.0,21151.0,0.00293308]
[1673927254827,1.234498,21152.0,21151.0,0.00293308]
[1673927255608,1.18440436,21152.0,21151.0,0.00293308]
[1673927256399,1.325498,21152.0,21151.0,0.00293308]
[1673927258414,1.53747334,21152.0,21151.0,0.00293308]
[1673927258667,0.412934,21152.0,21151.0,0.00293308]
[1673927260989,0.091,21152.0,21151.0,0.00293308]
[1673927262043,0.46697999,21153.0,21151.0,0.00293308]
[1673927262044,0.60840851,21153.0,21151.0,0.00293308]
[1673927262302,0.07885,21152.0,21151.0,0.01093308]
[1673927262550,0.24023233,21152.0,21151.0,0.00293308]
[1673927262808,0.71209485,21152.0,21151.0,0.00293308]
[1673927263063,0.71209485,21152.0,21151.0,0.00393308]
[1673927263064,0.79409485,21152.0,21151.0,0.00393308]
[1673927264088,0.71209485,21152.0,21151.0,0.00393308]
[1673927264360,0.76309485,21152.0,21151.0,0.00393308]
[1673927264606,0.97473531,21152.0,21151.0,0.00393308]
[1673927264865,0.97473531,21152.0,21151.0,0.00293308]
[1673927264866,0.78230679,21152.0,21151.0,0.00293308]
[1673927265123,1.14649408,21152.0,21151.0,0.00393308]
[1673927265388,1.61926208,21152.0,21151.0,0.00393308]
[1673927266682,1.33707479,21152.0,21151.0,0.00393308]
[1673927266936,1.61926208,21152.0,21151.0,0.00393308]
[1673927267174,1.33707479,21152.0,21151.0,0.00393308]
[1673927267714,1.61926208,21152.0,21151.0,0.00393308]
[1673927268218,1.33707479,21152.0,21151.0,0.00393308]
[1673927268467,2.35366064,21152.0,21151.0,0.00393308]
[1673927268754,2.26550594,21152.0,21151.0,0.00353978]
[1673927268942,2.61927927,21152.0,21151.0,0.00353978]
[1673927269227,2.61927872,21152.0,21151.0,0.00353978]
[1673927270440,1.79079599,21152.0,21151.0,0.00353978]
[1673927270741,1.53118886,21152.0,21151.0,0.00353978]
[1673927271498,1.45518886,21152.0,21151.0,0.00353978]
[1673927271752,1.17225024,21152.0,21151.0,0.00353978]
[1673927272007,1.45518886,21152.0,21151.0,0.00353978]
[1673927272263,1.17225024,21152.0,21151.0,0.00353978]
[1673927272558,1.40740845,21152.0,21151.0,0.00353978]
[1673927272784,1.45518886,21152.0,21151.0,0.00353978]
[1673927273046,1.31370735,21152.0,21151.0,0.00353978]
[1673927273324,1.36171905,21152.0,21151.0,0.00353978]
[1673927273578,1.71549183,21152.0,21151.0,0.00353978]
[1673927273860,2.11240253,21152.0,21151.0,0.00353978]
[1673927274114,1.75862975,21152.0,21151.0,0.00353978]
[1673927274369,2.11240253,21152.0,21151.0,0.00353978]
[1673927274643,1.71548105,21152.0,21151.0,0.00353978]
[1673927274900,2.66147125,21152.0,21151.0,0.00353978]
[1673927275182,2.45463263,21152.0,21151.0,0.00353978]
[1673927275450,2.73753815,21152.0,21151.0,0.00353978]
[1673927275709,2.9287348,21152.0,21151.0,0.00353978]
[1673927276507,2.45463263,21152.0,21151.0,0.00353978]
[1673927276769,2.73750725,21152.0,21151.0,0.00353978]
[1673927277036,1.31902662,21152.0,21151.0,0.00353978]
[1673927277312,2.73779214,21152.0,21151.0,0.00353978]
[1673927277581,1.31902662,21152.0,21151.0,0.00353978]
[1673927277840,2.7378018,21152.0,21151.0,0.00353978]
[1673927278345,2.6617018,21152.0,21151.0,0.00353978]
[1673927278607,1.45517273,21152.0,21151.0,0.00353978]
[1673927278861,2.40113719,21152.0,21151.0,0.00353978]
[1673927279243,2.66169106,21152.0,21151.0,0.00353978]
[1673927280960,1.78363906,21152.0,21151.0,0.00353978]
[1673927281228,1.78363906,21152.0,21148.0,0.25276991]
[1673927281229,0.403934,21152.0,21148.0,0.8916225]
[1673927281472,0.27272595,21152.0,21149.0,0.47283]
[1673927281734,0.27272595,21152.0,21150.0,0.237479]
[1673927281735,0.077,21152.0,21150.0,0.237479]
[1673927281995,0.077,21152.0,21150.0,0.0761]
[1673927283010,0.60849865,21153.0,21150.0,0.0761]
[1673927283542,0.82078205,21153.0,21150.0,0.0761]
[1673927283815,0.60849865,21153.0,21150.0,0.0761]
[1673927284065,0.60849865,21153.0,21150.0,0.548905]
[1673927284350,0.68749865,21153.0,21150.0,0.548905]
[1673927284853,0.68749865,21153.0,21150.0,0.549905]
[1673927285123,0.90378205,21153.0,21150.0,0.561905]
[1673927286168,0.69149865,21153.0,21150.0,0.561905]
[1673927286947,1.05787959,21153.0,21150.0,0.561905]
[1673927287202,0.90378205,21153.0,21150.0,0.561905]
[1673927287455,0.14151866,21152.0,21150.0,0.0891]
[1673927288389,0.14151866,21152.0,21150.0,0.0761]
[1673927288652,0.82078205,21153.0,21149.0,0.548213]
[1673927289851,0.14151866,21152.0,21149.0,0.548213]
[1673927290125,0.0085,21152.0,21149.0,0.548213]
[1673927290623,0.15001866,21152.0,21149.0,0.548213]
[1673927291102,0.15001866,21152.0,21150.0,0.23748]
[1673927291103,0.15401866,21152.0,21150.0,0.23748]
[1673927291367,0.15401866,21152.0,21149.0,0.560213]
[1673927292112,0.0125,21152.0,21149.0,0.560213]
[1673927292371,0.0125,21152.0,21150.0,0.237481]
[1673927292636,0.0125,21152.0,21149.0,0.560213]
[1673927292916,0.64502169,21151.0,21147.0,0.90304108]
[1673927293185,0.40979407,21148.0,21147.0,0.00332796]
[1673927293453,1.63314061,21148.0,21147.0,0.00332796]
[1673927293750,2.72922714,21148.0,21147.0,0.00332796]
[1673927294017,3.15335434,21148.0,21147.0,0.00332796]
[1673927294275,3.15335434,21148.0,21147.0,7.96e-06]
[1673927294276,3.45335434,21148.0,21147.0,7.96e-06]
[1673927294790,3.98452538,21148.0,21147.0,7.96e-06]
[1673927294791,3.5599269,21148.0,21147.0,7.96e-06]
[1673927295038,3.2014117,21148.0,21147.0,7.96e-06]
[1673927295311,2.13695233,21148.0,21147.0,7.96e-06]
[1673927295562,1.99544255,21148.0,21147.0,7.96e-06]
[1673927296075,3.25447801,21148.0,21147.0,7.96e-06]
[1673927296827,2.92618052,21148.0,21147.0,7.96e-06]
[1673927297355,2.92597675,21148.0,21147.0,7.96e-06]
[1673927298175,2.92597774,21148.0,21147.0,7.96e-06]
[1673927298491,2.87246597,21148.0,21146.0,1.787e-05]
[1673927298743,2.29062369,21147.0,21146.0,1.787e-05]
[1673927298997,1.81734239,21147.0,21146.0,1.787e-05]
[1673927299268,3.06360309,21147.0,21146.0,1.787e-05]
[1673927299514,3.55828235,21147.0,21146.0,1.787e-05]
[1673927300042,1.66529013,21147.0,21146.0,1.787e-05]
[1673927300306,1.48992903,21147.0,21146.0,1.787e-05]
[1673927300590,2.88862451,21147.0,21146.0,1.787e-05]
[1673927300840,2.98061505,21147.0,21146.0,1.787e-05]
[1673927301101,2.034337,21147.0,21146.0,1.787e-05]
[1673927301354,3.28062268,21147.0,21146.0,1.787e-05]
[1673927301853,3.18862268,21147.0,21146.0,1.787e-05]
[1673927302100,3.28062268,21147.0,21146.0,1.787e-05]
[1673927302474,2.6167958,21147.0,21146.0,1.787e-05]
[1673927303145,2.3167958,21147.0,21146.0,1.787e-05]
[1673927303386,0.62816721,21146.0,21139.0,2.62813655]
[1673927303626,0.945898,21144.0,21136.0,3.029]
[1673927303871,0.51265995,21143.0,21136.0,3.029]
[1673927304131,0.19072595,21142.0,21138.0,0.01918127]
[1673927304424,0.0085,21141.0,21139.0,6.997e-05]
[1673927304980,0.0085,21141.0,21138.0,0.49226127]
[1673927305173,0.19922595,21141.0,21138.0,0.47815572]
[1673927305686,0.31924855,21141.0,21138.0,0.00507572]
[1673927305934,0.0085,21141.0,21138.0,0.00507572]
[1673927306217,0.091,21141.0,21138.0,0.00507572]
[1673927306699,0.091,21141.0,21139.0,6.997e-05]
[1673927306956,0.091,21141.0,21138.0,0.00507572]
[1673927307730,0.1085,21142.0,21139.0,6.997e-05]
[1673927308257,0.091,21141.0,21139.0,6.997e-05]
[1673927308763,0.0085,21140.0,21138.0,0.00507572]
[1673927309029,0.0085,21142.0,21138.0,0.86859923]
[1673927309301,0.26784325,21148.0,21139.0,0.71483369]
[1673927309578,0.05602129,21148.0,21140.0,1.37720169]
[1673927309816,0.05602129,21148.0,21141.0,2.13379869]
[1673927310169,0.05602129,21148.0,21147.0,0.0761]
[1673927310353,0.05602129,21148.0,21147.0,0.1522]
[1673927310604,0.05602129,21148.0,21147.0,0.38973]
[1673927310875,0.05602129,21148.0,21147.0,0.68973]
[1673927310876,0.06402129,21148.0,21147.0,0.68973]
[1673927311140,0.05602129,21148.0,21147.0,0.68973]
[1673927311429,0.11502129,21148.0,21147.0,0.39073]
[1673927312211,0.11502129,21148.0,21147.0,0.39079994]
[1673927312457,0.11502129,21148.0,21147.0,0.69079994]
[1673927312714,0.11502129,21148.0,21147.0,0.98129994]
[1673927312967,0.11502129,21148.0,21147.0,0.99576319]
[1673927313752,0.05602129,21148.0,21147.0,0.99476319]
[1673927314050,0.05602129,21148.0,21147.0,1.00176319]
[1673927314051,0.06002129,21148.0,21147.0,1.00176319]
[1673927315775,0.06002129,21148.0,21147.0,0.33509325]
[1673927317069,0.06002129,21148.0,21147.0,0.41049325]
[1673927317589,0.06002129,21148.0,21147.0,0.71049325]
[1673927318090,0.06002129,21148.0,21147.0,1.47749494]
[1673927318859,0.06002129,21148.0,21147.0,1.95037494]
[1673927319668,0.05602129,21148.0,21147.0,1.94337494]
[1673927319946,0.06102129,21148.0,21147.0,1.98437494]
[1673927323901,0.06090199,21148.0,21147.0,1.98437494]
[1673927324409,0.06090199,21148.0,21147.0,2.41418859]
[1673927324935,0.06090199,21148.0,21147.0,2.41408899]
[1673927326256,0.06090199,21148.0,21147.0,3.18892338]
[1673927326512,0.06090199,21148.0,21147.0,2.41408899]
[1673927326766,0.06090199,21148.0,21147.0,2.27347534]
[1673927327035,0.06090199,21148.0,21147.0,1.98427534]
[1673927330073,0.06090199,21148.0,21147.0,2.12488899]
[1673927330576,0.06090199,21148.0,21147.0,1.98427534]
[1673927335993,0.0159328,21157.0,21147.0,1.96981209]
[1673927336222,0.20665875,21157.0,21155.0,0.0754]
[1673927336481,0.0159328,21157.0,21156.0,0.710086]
[1673927336749,0.0159328,21157.0,21156.0,0.710077]
[1673927337004,0.40075192,21156.0,21154.0,0.472721]
[1673927338072,0.0754,21155.0,21154.0,0.475721]
[1673927338326,0.0754,21155.0,21154.0,0.472721]
[1673927338609,0.0754,21155.0,21154.0,0.475721]
[1673927338857,0.53425192,21156.0,21154.0,0.475721]
[1673927339118,0.47625192,21156.0,21154.0,0.472721]
[1673927339386,0.53425192,21156.0,21154.0,0.475721]
[1673927340426,0.47625192,21156.0,21154.0,0.472721]
[1673927340701,0.53925192,21156.0,21154.0,0.003]
[1673927340959,0.53925192,21156.0,21153.0,0.472734]
[1673927341313,0.08335,21155.0,21154.0,0.003]
[1673927341477,0.08335,21155.0,21152.0,0.472756]
[1673927341478,0.0755,21154.0,21152.0,0.472756]
[1673927341739,0.37407595,21155.0,21154.0,0.003]
[1673927342009,0.25895,21155.0,21152.0,0.472756]
[1673927342258,0.076,21154.0,21153.0,0.003]
[1673927343322,0.076,21154.0,21152.0,0.945521]
[1673927343562,0.138,21154.0,21153.0,0.472746]
[1673927343869,0.062,21154.0,21153.0,0.710186]
[1673927344083,0.47625192,21156.0,21153.0,0.710185]
[1673927344340,0.062,21154.0,21153.0,0.475746]
[1673927344902,0.47625192,21156.0,21153.0,0.472746]
[1673927345355,0.53925192,21156.0,21153.0,0.475746]
[1673927346138,0.47625192,21156.0,21153.0,0.472746]
[1673927346395,0.062,21154.0,21153.0,0.475746]
[1673927346652,0.47625192,21156.0,21153.0,0.472746]
[1673927346920,0.47625192,21156.0,21153.0,0.475746]
[1673927346921,0.53925192,21156.0,21153.0,0.475746]
[1673927349552,0.076,21155.0,21153.0,0.475746]
[1673927350581,0.076,21155.0,21153.0,0.472746]
[1673927350841,0.138,21155.0,21153.0,0.475746]
[1673927352967,0.138,21155.0,21153.0,0.003]
[1673927352968,0.15935,21154.0,21153.0,0.003]
[1673927353227,0.481284,21154.0,21153.0,0.003]
[1673927353759,0.15935,21154.0,21153.0,0.003]
[1673927354018,0.481284,21154.0,21153.0,0.003]
[1673927354276,0.30056464,21154.0,21153.0,0.003]
[1673927354542,0.62249864,21154.0,21153.0,0.003]
[1673927355349,0.68449864,21154.0,21153.0,0.003]
[1673927355881,1.74352243,21154.0,21153.0,0.003]
[1673927355882,1.53170047,21154.0,21153.0,0.003]
[1673927356137,1.7440286,21154.0,21153.0,0.003]
[1673927356669,2.00392117,21154.0,21153.0,0.003]
[1673927357195,1.6506205,21154.0,21153.0,0.003]
[1673927357450,2.29012347,21154.0,21153.0,0.003]
[1673927357707,3.42628562,21154.0,21153.0,0.003]
[1673927357979,2.48038767,21154.0,21153.0,0.003]
[1673927358230,3.42629175,21154.0,21153.0,0.003]
[1673927359828,3.42686012,21154.0,21153.0,0.003]
[1673927360395,3.78631828,21154.0,21153.0,0.00270001]
[1673927360670,4.44813612,21154.0,21153.0,0.00270001]
[1673927361476,0.1,21153.0,21148.0,0.09060506]
[1673927361775,0.076,21149.0,21148.0,0.09060506]
[1673927362027,0.59715995,21149.0,21148.0,0.09060506]
[1673927362331,0.0845,21149.0,21148.0,0.09060506]
[1673927362804,0.1355,21149.0,21148.0,0.09060506]
[1673927366653,0.533534,21149.0,21148.0,0.09060506]
[1673927368234,0.84019276,21149.0,21148.0,0.09060506]
[1673927369247,0.78919276,21149.0,21148.0,0.09060506]
[1673927369517,0.80419276,21149.0,21148.0,0.09060506]
[1673927369762,0.497534,21149.0,21148.0,0.09060506]
[1673927370071,1.47214375,21149.0,21148.0,0.09060506]
[1673927370277,1.52269524,21149.0,21148.0,0.09060506]
[1673927370539,1.38114375,21149.0,21148.0,0.09060506]
[1673927370796,1.47214375,21149.0,21148.0,0.09060506]
[1673927371059,1.38114375,21149.0,21148.0,0.09060506]
[1673927371314,1.47214375,21149.0,21148.0,0.09060506]
[1673927372341,1.38114375,21149.0,21148.0,0.09060506]
[1673927372595,0.99930875,21149.0,21148.0,0.09060506]
[1673927375249,0.90830875,21149.0,21148.0,0.09060506]
[1673927375509,1.14086024,21149.0,21148.0,0.09060506]
[1673927375764,1.47214375,21149.0,21148.0,0.09060506]
[1673927376613,1.61369524,21149.0,21148.0,0.09060506]
[1673927378608,1.54824375,21149.0,21148.0,0.09060506]
[1673927379637,1.45724375,21149.0,21148.0,0.09060506]
[1673927379899,1.54824375,21149.0,21148.0,0.09060506]
[1673927380169,1.45724375,21149.0,21148.0,0.09060506]
[1673927380475,1.45724375,21149.0,21148.0,0.09049359]
[1673927381215,1.54824375,21149.0,21148.0,0.09049359]
[1673927382759,0.99930875,21149.0,21148.0,0.09049359]
[1673927384295,1.44205065,21149.0,21148.0,0.09049359]
[1673927384553,1.73047788,21149.0,21148.0,0.09049359]
[1673927385611,2.20331288,21149.0,21148.0,0.09049359]
[1673927385850,2.06176139,21149.0,21148.0,0.09049359]
[1673927386099,2.20306337,21149.0,21148.0,0.09049359]
[1673927386607,2.60510121,21149.0,21148.0,0.09049359]
[1673927386855,2.25115762,21149.0,21148.0,0.09049359]
[1673927387111,2.3444959,21149.0,21148.0,0.09049359]
[1673927387343,2.2534959,21149.0,21148.0,0.09049359]
[1673927387635,2.3444959,21149.0,21148.0,0.09049359]
[1673927387887,2.2534959,21149.0,21148.0,0.09049359]
[1673927388138,2.3444959,21149.0,21148.0,0.09049359]
[1673927388635,2.60506733,21149.0,21148.0,0.09049359]
[1673927389645,2.60506625,21149.0,21148.0,0.09049359]
[1673927389865,2.25118754,21149.0,21148.0,0.09049359]
[1673927390081,2.60506625,21149.0,21148.0,0.09049359]
[1673927390591,3.26814294,21149.0,21148.0,0.09049359]
[1673927391877,2.61307382,21149.0,21148.0,0.09049359]
[1673927392143,2.9667067,21149.0,21148.0,0.09049359]
[1673927394472,2.61307382,21149.0,21148.0,0.09049359]
[1673927394721,2.91307382,21149.0,21144.0,2.6293]
[1673927394973,0.0761,21145.0,21143.0,0.01665779]
[1673927395222,0.26682595,21145.0,21143.0,0.01665779]
[1673927395475,0.08335,21144.0,21143.0,0.01665779]
[1673927396215,0.08335,21144.0,21143.0,0.00507572]
[1673927396470,0.15885,21144.0,21143.0,0.00507572]
[1673927397221,0.24885,21144.0,21143.0,0.00507572]
[1673927397765,0.32485,21144.0,21143.0,0.00507572]
[1673927399538,0.24935,21144.0,21143.0,0.00507572]
[1673927400042,0.66558864,21144.0,21143.0,0.00507572]
[1673927400316,1.19980227,21144.0,21143.0,0.00507572]
[1673927400553,0.95966363,21144.0,21143.0,0.00507572]
[1673927401043,0.86966363,21144.0,21143.0,0.00507572]
[1673927401336,1.10228115,21144.0,21143.0,0.00481772]
[1673927401614,1.71680303,21144.0,21143.0,0.00481772]
[1673927401870,3.23120125,21144.0,21143.0,0.00481772]
[1673927402160,1.93108924,21144.0,21143.0,0.00481772]
[1673927402402,1.50437051,21144.0,21143.0,0.00481772]
[1673927402651,1.88551864,21144.0,21143.0,0.00481772]
[1673927402913,2.28604411,21144.0,21143.0,0.00481772]
[1673927403489,2.54016467,21144.0,21143.0,0.00481772]
[1673927403703,1.61708258,21144.0,21143.0,0.00481772]
[1673927403958,1.61703895,21144.0,21143.0,0.00481772]
[1673927404226,1.52603895,21144.0,21143.0,0.00481772]
[1673927404474,1.54103895,21144.0,21143.0,0.00481772]
[1673927406060,1.54101746,21144.0,21143.0,0.00481772]
[1673927406323,1.21908346,21144.0,21143.0,0.00481772]
[1673927406595,1.54101746,21144.0,21143.0,0.00481772]
[1673927407132,0.78478257,21144.0,21143.0,0.00481772]
[1673927407653,0.92637678,21144.0,21143.0,0.00481772]
[1673927407907,0.60444278,21144.0,21143.0,0.00481772]
[1673927408960,0.63787821,21144.0,21143.0,0.00481772]
[1673927408968,0.85027678,21144.0,21143.0,0.00481772]
[1673927409223,0.31594421,21144.0,21143.0,0.00481772]
[1673927410259,0.63787821,21144.0,21143.0,0.00481772]
[1673927410506,1.06807046,21144.0,21143.0,0.00481772]
[1673927410750,1.19384547,21144.0,21143.0,0.00481772]
[1673927412528,1.06807046,21144.0,21143.0,0.00481772]
[1673927413817,0.78478257,21144.0,21143.0,0.00481772]
[1673927414072,1.06807046,21144.0,21143.0,0.00481772]
[1673927414846,1.06806235,21144.0,21143.0,0.00481772]
[1673927415155,2.01437556,21144.0,21143.0,0.00481772]
[1673927415407,0.85567189,21144.0,21143.0,0.00481772]
[1673927415652,2.65926127,21144.0,21143.0,0.00481772]
[1673927415926,2.30514071,21144.0,21143.0,0.00481772]
[1673927416193,2.30513034,21144.0,21143.0,0.00481772]
[1673927416451,2.6592509,21144.0,21143.0,0.00481772]
[1673927417193,0.84717189,21144.0,21143.0,0.00481772]
[1673927417720,1.91174627,21144.0,21143.0,0.00481772]
[1673927417983,1.91174306,21144.0,21143.0,0.00481772]
[1673927418235,1.79350222,21144.0,21143.0,0.00481772]
[1673927418503,2.73882694,21144.0,21143.0,0.00481772]
[1673927418750,2.81482694,21144.0,21143.0,0.00481772]
[1673927419256,0.67114766,21144.0,21143.0,0.00481772]
[1673927419507,0.45343318,21144.0,21143.0,0.00481772]
[1673927419787,0.091,21144.0,21143.0,0.07962772]
[1673927420013,0.091,21144.0,21143.0,0.00481772]
[1673927421029,0.0995,21144.0,21143.0,0.00481772]
[1673927425771,0.45343318,21144.0,21143.0,0.00481772]
[1673927426302,0.31185977,21144.0,21143.0,0.00481772]
[1673927426870,0.59514766,21144.0,21143.0,0.00481772]
[1673927427676,2.19994068,21144.0,21143.0,0.00481772]
[1673927428893,1.8458257,21144.0,21143.0,0.00481772]
[1673927429135,1.87801226,21144.0,21143.0,0.00481772]
[1673927429389,2.19994626,21144.0,21143.0,0.00481772]
[1673927429629,1.5188917,21144.0,21143.0,0.00481772]
[1673927429890,1.72211082,21144.0,21143.0,0.00481772]
[1673927430639,1.5188754,21144.0,21143.0,0.00481772]
[1673927430900,2.19492996,21144.0,21143.0,0.00481772]
[1673927431157,1.72211082,21144.0,21143.0,0.00481772]
[1673927431427,1.93465895,21144.0,21143.0,0.00481772]
[1673927431663,1.87297558,21144.0,21143.0,0.00481772]
[1673927431898,2.19490958,21144.0,21143.0,0.00481772]
[1673927432153,1.84078902,21144.0,21143.0,0.00481772]
[1673927432414,1.51870365,21144.0,21143.0,0.00481772]
[1673927432685,2.19475821,21144.0,21143.0,0.00481772]
[1673927433449,1.87282421,21144.0,21143.0,0.00481772]
[1673927433674,2.19475821,21144.0,21143.0,0.00481772]
[1673927433943,1.91147032,21144.0,21143.0,0.00481772]
[1673927434716,1.40037223,21144.0,21143.0,0.00481772]
[1673927434965,1.61298904,21144.0,21143.0,0.00481772]
[1673927435230,2.19498991,21144.0,21143.0,0.00481772]
[1673927435468,1.87305591,21144.0,21143.0,0.00481772]
[1673927435717,2.19498991,21144.0,21143.0,0.00481772]
[1673927436225,1.58956055,21144.0,21143.0,0.00481772]
[1673927436479,1.91149455,21144.0,21143.0,0.00481772]
[1673927436991,2.19501883,21144.0,21143.0,0.00481772]
[1673927437247,1.93497655,21144.0,21143.0,0.00481772]
[1673927437506,0.44039607,21144.0,21143.0,0.07962772]
[1673927437774,0.44039607,21144.0,21143.0,0.31720772]
[1673927437775,0.086,21144.0,21143.0,0.31720772]
[1673927438023,0.44039607,21144.0,21143.0,0.00481772]
[1673927438522,0.22775623,21144.0,21143.0,0.00481772]
[1673927439303,0.086,21144.0,21143.0,0.00481772]
[1673927439550,0.086,21144.0,21143.0,0.24239772]
[1673927439823,0.086,21144.0,21143.0,0.00481772]
[1673927440596,0.086,21144.0,21143.0,0.24239772]
[1673927440886,0.086,21144.0,21143.0,0.00481772]
[1673927441617,0.22775623,21144.0,21143.0,0.00481772]
[1673927442892,0.44039607,21144.0,21143.0,0.00481772]
[1673927444750,0.33925623,21144.0,21143.0,0.00481772]
[1673927445016,0.55189607,21144.0,21143.0,0.00481772]
[1673927447693,0.55185999,21144.0,21143.0,0.00481772]
[1673927447943,0.56035999,21144.0,21143.0,0.00481772]
[1673927448465,0.34772015,21144.0,21143.0,0.00481772]
[1673927448724,0.56035999,21144.0,21143.0,0.00481772]
[1673927448996,0.70216412,21144.0,21143.0,0.00481772]
[1673927449255,1.75772623,21144.0,21143.0,0.00481772]
[1673927449514,1.97031342,21144.0,21143.0,0.00481772]
[1673927449790,1.64837137,21144.0,21143.0,0.00481772]
[1673927450234,1.75772623,21144.0,21143.0,0.00481772]
[1673927450489,1.02404465,21144.0,21143.0,0.00481772]
[1673927450766,0.41858637,21144.0,21143.0,0.00481772]
[1673927451284,0.88224102,21144.0,21143.0,0.00481772]
[1673927451769,0.56030702,21144.0,21143.0,0.00481772]
[1673927452530,0.70211065,21144.0,21143.0,0.00481772]
[1673927453046,0.88224507,21144.0,21143.0,0.00481772]
[1673927453300,0.56031107,21144.0,21143.0,0.00481772]
[1673927454087,0.56031107,21144.0,21143.0,0.00471219]
[1673927454349,2.24312519,21144.0,21143.0,0.00424098]
[1673927454622,3.92999896,21144.0,21143.0,0.00424098]
[1673927454883,4.95395731,21144.0,21143.0,0.00424098]
[1673927455181,5.05275731,21144.0,21143.0,0.00424098]
[1673927455442,4.8747367,21144.0,21143.0,0.00424098]
[1673927455694,4.51291886,21144.0,21143.0,0.00424098]
[1673927455950,0.00424,21143.0,21139.0,0.00507572]
[1673927456195,0.971617,21140.0,21139.0,0.00507572]
[1673927456443,3.03011329,21140.0,21139.0,0.00507572]
[1673927456700,2.55600201,21140.0,21139.0,0.00507572]
[1673927457471,0.1,21139.0,21135.0,2.60689416]
[1673927457768,0.1119,21137.0,21134.0,0.01893149]
[1673927457970,0.51265995,21136.0,21134.0,0.01893149]
[1673927458231,0.1119,21135.0,21134.0,0.01893149]
[1673927458538,0.1119,21135.0,21134.0,0.00507618]
[1673927458739,0.1119,21136.0,21134.0,0.00507618]
[1673927460332,0.2019,21136.0,21134.0,0.00507618]
[1673927461034,0.61761728,21137.0,21134.0,0.00507618]
[1673927461035,0.69361728,21137.0,21134.0,0.00507618]
[1673927461273,0.0995,21136.0,21134.0,0.00507618]
[1673927461806,0.0995,21136.0,21134.0,0.00514617]
[1673927462337,0.0995,21136.0,21134.0,0.00507618]
[1673927462594,0.0085,21136.0,21134.0,0.00507618]
[1673927462869,0.0085,21136.0,21134.0,0.00514617]
[1673927462870,0.091,21136.0,21134.0,0.00514617]
[1673927463124,0.091,21136.0,21134.0,0.30514617]
[1673927463379,0.091,21136.0,21135.0,0.237693]
[1673927463624,0.091,21136.0,21134.0,0.30507618]
[1673927464137,0.091,21136.0,21134.0,0.00507618]
[1673927464385,0.091,21136.0,21134.0,0.30507618]
[1673927464646,0.091,21136.0,21134.0,0.47824218]
[1673927473483,0.091,21136.0,21134.0,0.00507618]
[1673927474324,0.091,21136.0,21135.0,0.237692]
[1673927474575,0.091,21136.0,21135.0,1.01084]
[1673927474841,0.091,21136.0,21135.0,1.02469015]
[1673927475122,0.0014219,21142.0,21136.0,0.08682519]
[1673927475372,0.4134491,21141.0,21137.0,1.183832]
[1673927475655,0.4134491,21141.0,21138.0,0.237649]
[1673927475877,0.4134491,21141.0,21139.0,0.473059]
[1673927476162,0.4134491,21141.0,21140.0,0.237624]
[1673927476428,0.4134491,21141.0,21139.0,0.473059]
[1673927476946,0.4134491,21141.0,21139.0,0.480059]
[1673927477189,0.4134491,21141.0,21139.0,0.473059]
[1673927477451,0.4134491,21141.0,21140.0,0.004]
[1673927477747,0.4134491,21141.0,21138.0,0.473068]
[1673927477989,0.4134491,21141.0,21139.0,0.007]
[1673927478769,0.4134491,21141.0,21138.0,0.473068]
[1673927479023,0.4134491,21141.0,21138.0,0.007]
[1673927479296,0.4134491,21141.0,21137.0,0.473086]
[1673927479587,0.0845,21140.0,21139.0,0.007]
[1673927479805,0.406434,21140.0,21136.0,0.08682519]
[1673927480058,0.406434,21140.0,21138.0,0.007]
[1673927480059,0.0085,21140.0,21138.0,0.007]
[1673927480314,0.0085,21140.0,21136.0,1.03306719]
[1673927480576,0.19922595,21140.0,21137.0,0.007]
[1673927480834,0.19922595,21140.0,21136.0,1.03305319]
[1673927481372,0.19922595,21140.0,21136.0,0.55992919]
[1673927481893,0.0085,21140.0,21136.0,0.56692919]
[1673927484436,0.19922595,21140.0,21136.0,0.56692919]
[1673927484683,0.34092408,21140.0,21136.0,0.56692919]
[1673927484939,0.61368479,21140.0,21136.0,0.56692919]
[1673927485195,0.57198039,21139.0,21136.0,0.09382519]
[1673927485472,0.321934,21138.0,21136.0,0.09382519]
[1673927485698,0.321934,21137.0,21136.0,0.09382519]
[1673927485956,0.88452758,21139.0,21136.0,0.09382519]
[1673927486225,0.78452758,21139.0,21136.0,0.09382519]
[1673927486474,0.43028226,21139.0,21136.0,0.08682519]
[1673927486727,0.43028226,21139.0,21136.0,0.09082519]
[1673927487270,0.321934,21138.0,21136.0,0.09082519]
[1673927487522,0.321934,21137.0,21136.0,0.09082519]
[1673927487767,0.78452758,21139.0,21136.0,0.09082519]
[1673927488312,0.57198039,21139.0,21136.0,0.09082519]
[1673927488669,0.78452758,21139.0,21136.0,0.09082519]
[1673927489463,0.78452758,21139.0,21136.0,0.08682519]
[1673927489714,0.78452758,21139.0,21136.0,0.16082519]
[1673927490005,0.14169813,21138.0,21136.0,0.16082519]